fUSD/lending_fUSD_20240324
["ID","MTS","AMOUNT","RATE_DAILY","PERIOD"]
[320318877,1711288238940,-550.61880579,0.00019178,2]
[320318879,1711288238950,-502.00236844,0.00019178,2]
[320318881,1711288238959,-500.0,0.00019178,2]
[320318883,1711288238968,-500.0,0.00019178,2]
[320318885,1711288238978,-508.32985034,0.00019178,2]
[320318887,1711288238987,-500.0,0.00019178,2]
[320318889,1711288238997,-456.54245309,0.00019178,2]
[320318891,1711288239007,-502.84068693,0.00019178,2]
[320318893,1711288239016,-500.0,0.00019178,2]
[320318895,1711288239025,-500.0,0.00019178,2]
[320318897,1711288239035,-500.0,0.00019178,2]
[320318899,1711288239044,-500.0,0.00019178,2]
[320318901,1711288239053,-208.35716475,0.00019178,2]
[320318903,1711288239062,-500.0,0.00019178,2]
[320318905,1711288239071,-500.0,0.00019178,2]
[320318907,1711288239081,-500.0,0.00019178,2]
[320318909,1711288239090,-500.0,0.00019178,2]
[320318911,1711288239099,-500.0,0.00019178,2]
[320318913,1711288239109,-502.73128615,0.00019178,2]
[320318915,1711288239118,-500.0,0.00019178,2]
[320318917,1711288239127,-500.0,0.00019178,2]
[320318919,1711288239136,-500.0,0.00019178,2]
[320318921,1711288239145,-500.0,0.00019178,2]
[320318923,1711288239154,-500.0,0.00019178,2]
[320318925,1711288239163,-500.0,0.00019178,2]
[320318927,1711288239173,-500.0,0.00019178,2]
[320318929,1711288239182,-500.0,0.00019178,2]
[320318931,1711288239192,-500.0,0.00019178,2]
[320318933,1711288239202,-500.0,0.00019178,2]
[320318935,1711288239211,-500.0,0.00019178,2]
[320318937,1711288239221,-500.0,0.00019178,2]
[320318939,1711288239230,-500.0,0.00019178,2]
[320318941,1711288239239,-500.0,0.00019178,2]
[320318943,1711288239248,-500.0,0.00019178,2]
[320318945,1711288239258,-500.0,0.00019178,2]
[320318947,1711288239267,-500.0,0.00019178,2]
[320318949,1711288239276,-500.0,0.00019178,2]
[320318951,1711288239285,-500.0,0.00019178,2]
[320318953,1711288239295,-500.0,0.00019178,2]
[320318955,1711288239304,-500.0,0.00019178,2]
[320318957,1711288239313,-500.0,0.00019178,2]
[320318959,1711288239323,-500.0,0.00019178,2]
[320318961,1711288239332,-500.0,0.00019178,2]
[320318963,1711288239342,-500.0,0.00019178,2]
[320318965,1711288239351,-500.0,0.00019178,2]
[320318967,1711288239362,-500.0,0.00019178,2]
[320318969,1711288239371,-500.0,0.00019178,2]
[320318971,1711288239381,-500.0,0.00019178,2]
[320318973,1711288239391,-500.0,0.00019178,2]
[320318975,1711288239403,-500.0,0.00019178,2]
[320318977,1711288239414,-500.0,0.00019178,2]
[320318979,1711288239423,-203.714497,0.00019178,2]
[320318981,1711288239432,-500.0,0.00019178,2]
[320318983,1711288239441,-500.0,0.00019178,2]
[320318985,1711288239451,-500.0,0.00019178,2]
[320318987,1711288239461,-500.0,0.00019178,2]
[320318989,1711288239470,-500.0,0.00019178,2]
[320318991,1711288239480,-500.0,0.00019178,2]
[320318993,1711288239490,-500.0,0.00019178,2]
[320318995,1711288239500,-500.0,0.00019178,2]
[320318997,1711288239509,-500.0,0.00019178,2]
[320318999,1711288239518,-500.0,0.00019178,2]
[320319001,1711288239527,-500.0,0.00019178,2]
[320319003,1711288239537,-500.0,0.00019178,2]
[320319005,1711288239546,-500.0,0.00019178,2]
[320319006,1711288239555,-500.0,0.00019178,2]
[320319009,1711288239564,-500.0,0.00019178,2]
[320319010,1711288239574,-504.96471506,0.00019178,2]
[320319012,1711288239583,-500.0,0.00019178,2]
[320319014,1711288239592,-500.0,0.00019178,2]
[320319016,1711288239601,-500.0,0.00019178,2]
[320319019,1711288239612,-500.0,0.00019178,2]
[320319021,1711288239621,-500.0,0.00019178,2]
[320319022,1711288239630,-500.0,0.00019178,2]
[320319025,1711288239640,-500.0,0.00019178,2]
[320319026,1711288239649,-500.0,0.00019178,2]
[320319028,1711288239658,-500.0,0.00019178,2]
[320319030,1711288239669,-500.0,0.00019178,2]
[320319033,1711288239678,-500.0,0.00019178,2]
[320319035,1711288239688,-500.0,0.00019178,2]
[320319036,1711288239697,-500.0,0.00019178,2]
[320319038,1711288239706,-500.0,0.00019178,2]
[320319041,1711288239716,-500.0,0.00019178,2]
[320319043,1711288239725,-500.0,0.00019178,2]
[320319045,1711288239734,-500.0,0.00019178,2]
[320319047,1711288239743,-236.38212689,0.00019178,2]
[320319049,1711288239755,-500.0,0.00019178,2]
[320319051,1711288239765,-500.0,0.00019178,2]
[320319053,1711288239774,-500.0,0.00019178,2]
[320319055,1711288239783,-500.0,0.00019178,2]
[320319057,1711288239792,-500.0,0.00019178,2]
[320319059,1711288239801,-500.0,0.00019178,2]
[320319060,1711288239810,-313.89134513,0.00019178,2]
[320319062,1711288239820,-500.0,0.00019178,2]
[320319064,1711288239830,-500.0,0.00019178,2]
[320319066,1711288239839,-500.0,0.00019178,2]
[320319069,1711288239848,-500.0,0.00019178,2]
[320319070,1711288239858,-500.0,0.00019178,2]
[320319072,1711288239868,-500.0,0.00019178,2]
[320319074,1711288239877,-500.0,0.00019178,2]
[320319076,1711288239887,-500.0,0.00019178,2]
[320319079,1711288239897,-500.0,0.00019178,2]
[320319081,1711288239906,-500.0,0.00019178,2]
[320319083,1711288239915,-500.0,0.00019178,2]
[320319085,1711288239925,-500.0,0.00019178,2]
[320319087,1711288239935,-500.0,0.00019178,2]
[320319089,1711288239944,-500.0,0.00019178,2]
[320319091,1711288239953,-500.0,0.00019178,2]
[320319093,1711288239962,-500.0,0.00019178,2]
[320319095,1711288239972,-500.0,0.00019178,2]
[320319097,1711288239981,-595.53,0.00019178,2]
[320319099,1711288239990,-1389.74,0.00019178,2]
[320319101,1711288239999,-314.60901563,0.00019178,2]
[320319103,1711288240008,-150.0,0.00019178,2]
[320319105,1711288240017,-500.0,0.00019178,2]
[320319107,1711288240026,-500.0,0.00019178,2]
[320319109,1711288240035,-500.0,0.00019178,2]
[320319111,1711288240044,-500.0,0.00019178,2]
[320319113,1711288240054,-500.0,0.00019178,2]
[320319115,1711288240063,-500.0,0.00019178,2]
[320319117,1711288240073,-500.0,0.00019178,2]
[320319119,1711288240082,-500.0,0.00019178,2]
[320319121,1711288240092,-500.0,0.00019178,2]
[320319123,1711288240100,-500.0,0.00019178,2]
[320319125,1711288240110,-500.0,0.00019178,2]
[320319127,1711288240119,-500.0,0.00019178,2]
[320319129,1711288240128,-500.0,0.00019178,2]
[320319131,1711288240137,-500.0,0.00019178,2]
[320319133,1711288240146,-500.0,0.00019178,2]
[320319135,1711288240155,-500.0,0.00019178,2]
[320319137,1711288240165,-500.0,0.00019178,2]
[320319139,1711288240174,-500.0,0.00019178,2]
[320319141,1711288240183,-500.0,0.00019178,2]
[320319143,1711288240193,-500.0,0.00019178,2]
[320319145,1711288240202,-459.12584668,0.00019178,2]
[320319147,1711288240210,-500.0,0.00019178,2]
[320319149,1711288240220,-500.0,0.00019178,2]
[320319151,1711288240229,-500.0,0.00019178,2]
[320319153,1711288240238,-500.0,0.00019178,2]
[320319155,1711288240246,-500.0,0.00019178,2]
[320319157,1711288240255,-500.0,0.00019178,2]
[320319159,1711288240264,-500.0,0.00019178,2]
[320319161,1711288240274,-500.0,0.00019178,2]
[320319163,1711288240283,-600.2147692,0.00019178,2]
[320319165,1711288240292,-500.0,0.00019178,2]
[320319167,1711288240301,-500.0,0.00019178,2]
[320319169,1711288240310,-500.0,0.00019178,2]
[320319171,1711288240320,-500.0,0.00019178,2]
[320319173,1711288240329,-500.0,0.00019178,2]
[320319175,1711288240337,-500.0,0.00019178,2]
[320319177,1711288240346,-500.0,0.00019178,2]
[320319179,1711288240356,-500.0,0.00019178,2]
[320319181,1711288240366,-500.0,0.00019178,2]
[320319183,1711288240376,-500.0,0.00019178,2]
[320319185,1711288240385,-500.0,0.00019178,2]
[320319187,1711288240394,-500.0,0.00019178,2]
[320319189,1711288240404,-500.0,0.00019178,2]
[320319190,1711288240413,-242.27808043,0.00019178,2]
[320319192,1711288240425,-500.0,0.00019178,2]
[320319194,1711288240435,-500.0,0.00019178,2]
[320319196,1711288240444,-500.0,0.00019178,2]
[320319198,1711288240453,-500.0,0.00019178,2]
[320319200,1711288240463,-500.0,0.00019178,2]
[320319202,1711288240472,-500.0,0.00019178,2]
[320319204,1711288240482,-640.77828665,0.00019178,2]
[320319206,1711288240491,-500.0,0.00019178,2]
[320319209,1711288240501,-500.0,0.00019178,2]
[320319210,1711288240511,-500.0,0.00019178,2]
[320319212,1711288240520,-500.0,0.00019178,2]
[320319214,1711288240529,-500.0,0.00019178,2]
[320319216,1711288240538,-500.0,0.00019178,2]
[320319218,1711288240547,-500.0,0.00019178,2]
[320319220,1711288240555,-500.0,0.00019178,2]
[320319222,1711288240564,-509.40115583,0.00019178,2]
[320319224,1711288240573,-500.0,0.00019178,2]
[320319226,1711288240582,-500.0,0.00019178,2]
[320319228,1711288240592,-500.0,0.00019178,2]
[320319230,1711288240601,-500.0,0.00019178,2]
[320319232,1711288240611,-500.0,0.00019178,2]
[320319234,1711288240620,-500.0,0.00019178,2]
[320319236,1711288240629,-500.0,0.00019178,2]
[320319238,1711288240639,-500.0,0.00019178,2]
[320319240,1711288240648,-500.0,0.00019178,2]
[320319242,1711288240657,-500.0,0.00019178,2]
[320319244,1711288240666,-500.0,0.00019178,2]
[320319246,1711288240674,-500.0,0.00019178,2]
[320319248,1711288240683,-500.0,0.00019178,2]
[320319250,1711288240692,-500.0,0.00019178,2]
[320319252,1711288240701,-500.0,0.00019178,2]
[320319254,1711288240710,-190.63248437,0.00019178,2]
[320319256,1711288240719,-500.0,0.00019178,2]
[320319258,1711288240728,-500.0,0.00019178,2]
[320319260,1711288240737,-500.0,0.00019178,2]
[320319262,1711288240747,-242.51768111,0.00019178,2]
[320319264,1711288240756,-500.0,0.00019178,2]
[320319266,1711288240765,-500.0,0.00019178,2]
[320319268,1711288240775,-500.0,0.00019178,2]
[320319270,1711288240784,-500.0,0.00019178,2]
[320319272,1711288240792,-2169.46,0.00019178,2]
[320319274,1711288240801,-500.0,0.00019178,2]
[320319276,1711288240811,-500.0,0.00019178,2]
[320319277,1711288240820,-500.0,0.00019178,2]
[320319279,1711288240829,-500.0,0.00019178,2]
[320319281,1711288240838,-500.0,0.00019178,2]
[320319283,1711288240848,-500.0,0.00019178,2]
[320319285,1711288240857,-478.17336851,0.00019178,2]
[320319287,1711288240870,-500.0,0.00019178,2]
[320319289,1711288240879,-500.0,0.00019178,2]
[320319291,1711288240889,-500.0,0.00019178,2]
[320319293,1711288240899,-510.95859991,0.00019178,2]
[320319295,1711288240908,-500.0,0.00019178,2]
[320319297,1711288240918,-506.99709391,0.00019178,2]
[320319299,1711288240927,-507.48155128,0.00019178,2]
[320319301,1711288240936,-500.0,0.00019178,2]
[320319303,1711288240945,-500.0,0.00019178,2]
[320319305,1711288240954,-500.0,0.00019178,2]
[320319307,1711288240963,-500.0,0.00019178,2]
[320319309,1711288240972,-2400.18,0.00019178,2]
[320319311,1711288240982,-500.0,0.00019178,2]
[320319313,1711288240991,-500.0,0.00019178,2]
[320319315,1711288241000,-500.0,0.00019178,2]
[320319317,1711288241009,-500.0,0.00019178,2]
[320319319,1711288241018,-500.0,0.00019178,2]
[320319321,1711288241027,-10674.0,0.00019178,2]
[320319323,1711288241036,-500.0,0.00019178,2]
[320319325,1711288241045,-500.0,0.00019178,2]
[320319327,1711288241054,-500.0,0.00019178,2]
[320319328,1711288241062,-500.0,0.00019178,2]
[320319351,1711288241270,-543.66,0.00019178,2]
[320319353,1711288241280,-500.0,0.00019178,2]
[320319355,1711288241289,-153.32,0.00019178,2]
[320319356,1711288241299,-500.0,0.00019178,2]
[320319358,1711288241308,-500.0,0.00019178,2]
[320319360,1711288241318,-500.0,0.00019178,2]
[320319362,1711288241327,-501.70283525,0.00019178,2]
[320319364,1711288241336,-500.0,0.00019178,2]
[320319366,1711288241345,-2914.41,0.00019178,2]
[320319368,1711288241354,-516.13,0.00019178,2]
[320319370,1711288241366,-500.0,0.00019178,2]
[320319371,1711288241375,-469.26,0.00019178,2]
[320319372,1711288241385,-500.0,0.00019178,2]
[320319373,1711288241394,-728.96,0.00019178,2]
[320319374,1711288241404,-500.0,0.00019178,2]
[320319375,1711288241413,-4051.17,0.00019178,2]
[320319376,1711288241424,-500.0,0.00019178,2]
[320319377,1711288241433,-500.0,0.00019178,2]
[320319378,1711288241443,-500.0,0.00019178,2]
[320319379,1711288241452,-453.25,0.00019178,2]
[320319381,1711288241462,-500.0,0.00019178,2]
[320319383,1711288241472,-500.0,0.00019178,2]
[320319385,1711288241482,-500.0,0.00019178,2]
[320319387,1711288241492,-1700.71,0.00019178,2]
[320319389,1711288241501,-500.0,0.00019178,2]
[320319391,1711288241511,-500.0,0.00019178,2]
[320319393,1711288241520,-500.0,0.00019178,2]
[320319395,1711288241529,-500.0,0.00019178,2]
[320319397,1711288241538,-500.0,0.00019178,2]
[320319399,1711288241549,-500.0,0.00019178,2]
[320319400,1711288241558,-500.0,0.00019178,2]
[320319402,1711288241568,-500.0,0.00019178,2]
[320319404,1711288241577,-500.0,0.00019178,2]
[320319406,1711288241587,-500.0,0.00019178,2]
[320319408,1711288241596,-500.0,0.00019178,2]
[320319411,1711288241606,-500.0,0.00019178,2]
[320319413,1711288241617,-500.0,0.00019178,2]
[320319415,1711288241627,-500.0,0.00019178,2]
[320319416,1711288241636,-685.67,0.00019178,2]
[320319418,1711288241645,-255.22898478,0.00019178,2]
[320319421,1711288241655,-500.0,0.00019178,2]
[320319423,1711288241664,-500.0,0.00019178,2]
[320319424,1711288241676,-500.0,0.00019178,2]
[320319427,1711288241685,-613.56,0.00019178,2]
[320319428,1711288241694,-500.0,0.00019178,2]
[320319430,1711288241703,-675.26,0.00019178,2]
[320319432,1711288241712,-500.0,0.00019178,2]
[320319434,1711288241722,-531.51281859,0.00019178,2]
[320319436,1711288241732,-1143.5,0.00019178,2]
[320319439,1711288241742,-500.0,0.00019178,2]
[320319441,1711288241750,-500.0,0.00019178,2]
[320319443,1711288241761,-500.0,0.00019178,2]
[320319445,1711288241771,-500.0,0.00019178,2]
[320319446,1711288241780,-500.0,0.00019178,2]
[320319448,1711288241790,-500.0,0.00019178,2]
[320319450,1711288241799,-500.0,0.00019178,2]
[320319452,1711288241808,-1455.29,0.00019178,2]
[320319454,1711288241818,-644.77,0.00019178,2]
[320319457,1711288241827,-500.0,0.00019178,2]
[320319458,1711288241837,-500.0,0.00019178,2]
[320319459,1711288241846,-1117.41,0.00019178,2]
[320319460,1711288241855,-500.0,0.00019178,2]
[320319461,1711288241868,-500.0,0.00019178,2]
[320319462,1711288241879,-500.0,0.00019178,2]
[320319463,1711288241888,-500.0,0.00019178,2]
[320319464,1711288241897,-500.0,0.00019178,2]
[320319465,1711288241906,-500.0,0.00019178,2]
[320319467,1711288241916,-500.0,0.00019178,2]
[320319468,1711288241925,-500.0,0.00019178,2]
[320319469,1711288241935,-500.0,0.00019178,2]
[320319470,1711288241944,-500.0,0.00019178,2]
[320319471,1711288241954,-500.0,0.00019178,2]
[320319472,1711288241963,-500.0,0.00019178,2]
[320319473,1711288241972,-1208.46,0.00019178,2]
[320319474,1711288241981,-576.67,0.00019178,2]
[320319475,1711288241990,-500.0,0.00019178,2]
[320319476,1711288241999,-555.64,0.00019178,2]
[320319477,1711288242008,-500.0,0.00019178,2]
[320319478,1711288242018,-500.0,0.00019178,2]
[320319480,1711288242027,-2921.34,0.00019178,2]
[320319482,1711288242037,-713.51,0.00019178,2]
[320319484,1711288242046,-500.0,0.00019178,2]
[320319486,1711288242056,-583.52,0.00019178,2]
[320319488,1711288242065,-500.0,0.00019178,2]
[320319490,1711288242074,-500.0,0.00019178,2]
[320319492,1711288242085,-502.47656595,0.00019178,2]
[320319494,1711288242095,-1839.25,0.00019178,2]
[320319496,1711288242105,-576.74,0.00019178,2]
[320319498,1711288242118,-693.69,0.00019178,2]
[320319500,1711288242127,-500.0,0.00019178,2]
[320319502,1711288242136,-500.0,0.00019178,2]
[320319504,1711288242145,-500.0,0.00019178,2]
[320319506,1711288242154,-500.0,0.00019178,2]
[320319508,1711288242163,-500.0,0.00019178,2]
[320319510,1711288242173,-500.0,0.00019178,2]
[320319512,1711288242184,-500.0,0.00019178,2]
[320319515,1711288242194,-500.0,0.00019178,2]
[320319516,1711288242203,-1519.9,0.00019178,2]
[320319518,1711288242212,-1524.46,0.00019178,2]
[320319520,1711288242221,-500.0,0.00019178,2]
[320319522,1711288242231,-500.0,0.00019178,2]
[320319524,1711288242240,-500.0,0.00019178,2]
[320319526,1711288242250,-890.11,0.00019178,2]
[320319529,1711288242260,-500.0,0.00019178,2]
[320319530,1711288242270,-956.84,0.00019178,2]
[320319531,1711288242280,-500.0,0.00019178,2]
[320319532,1711288242290,-500.0,0.00019178,2]
[320319533,1711288242299,-10749.62,0.00019178,2]
[320319534,1711288242310,-500.0,0.00019178,2]
[320319535,1711288242319,-500.0,0.00019178,2]
[320319536,1711288242329,-2214.29,0.00019178,2]
[320319537,1711288242338,-502.82001363,0.00019178,2]
[320319538,1711288242348,-500.0,0.00019178,2]
[320319539,1711288242358,-500.0,0.00019178,2]
[320319540,1711288242372,-500.0,0.00019178,2]
[320319541,1711288242383,-2299.89,0.00019178,2]
[320319542,1711288242392,-1251.95,0.00019178,2]
[320319543,1711288242403,-500.0,0.00019178,2]
[320319544,1711288242413,-816.05,0.00019178,2]
[320319545,1711288242424,-500.0,0.00019178,2]
[320319546,1711288242434,-500.0,0.00019178,2]
[320319547,1711288242444,-786.26,0.00019178,2]
[320319548,1711288242454,-500.0,0.00019178,2]
[320319549,1711288242465,-187.25,0.00019178,2]
[320319550,1711288242474,-1963.67,0.00019178,2]
[320319551,1711288242484,-500.0,0.00019178,2]
[320319552,1711288242493,-1074.55,0.00019178,2]
[320319553,1711288242502,-500.0,0.00019178,2]
[320319554,1711288242512,-500.0,0.00019178,2]
[320319555,1711288242521,-2153.79,0.00019178,2]
[320319556,1711288242530,-500.0,0.00019178,2]
[320319557,1711288242539,-1076.79,0.00019178,2]
[320319558,1711288242548,-500.0,0.00019178,2]
[320319559,1711288242557,-500.0,0.00019178,2]
[320319560,1711288242566,-500.0,0.00019178,2]
[320319561,1711288242575,-500.0,0.00019178,2]
[320319562,1711288242584,-500.0,0.00019178,2]
[320319563,1711288242594,-500.0,0.00019178,2]
[320319564,1711288242603,-500.0,0.00019178,2]
[320319565,1711288242613,-463.58566096,0.00019178,2]
[320319566,1711288242623,-500.0,0.00019178,2]
[320319567,1711288242632,-1164.94,0.00019178,2]
[320319568,1711288242641,-500.0,0.00019178,2]
[320319569,1711288242650,-565.12,0.00019178,2]
[320319570,1711288242659,-1292.93,0.00019178,2]
[320319571,1711288242667,-500.0,0.00019178,2]
[320319572,1711288242676,-500.0,0.00019178,2]
[320319573,1711288242685,-840.82,0.00019178,2]
[320319574,1711288242695,-500.0,0.00019178,2]
[320319576,1711288242704,-500.0,0.00019178,2]
[320319578,1711288242714,-509.30706375,0.00019178,2]
[320319580,1711288242723,-500.0,0.00019178,2]
[320319582,1711288242732,-500.0,0.00019178,2]
[320319583,1711288242741,-500.0,0.00019178,2]
[320319584,1711288242751,-503.12290922,0.00019178,2]
[320319585,1711288242760,-3064.78,0.00019178,2]
[320319586,1711288242769,-500.0,0.00019178,2]
[320319587,1711288242778,-868.43,0.00019178,2]
[320319588,1711288242788,-500.0,0.00019178,2]
[320319589,1711288242798,-500.0,0.00019178,2]
[320319590,1711288242807,-7809.52,0.00019178,2]
[320319592,1711288242817,-1927.15,0.00019178,2]
[320319594,1711288242825,-500.0,0.00019178,2]
[320319596,1711288242835,-500.0,0.00019178,2]
[320319598,1711288242845,-500.0,0.00019178,2]
[320319600,1711288242855,-500.0,0.00019178,2]
[320319602,1711288242866,-500.0,0.00019178,2]
[320319604,1711288242875,-500.0,0.00019178,2]
[320319606,1711288242883,-500.0,0.00019178,2]
[320319608,1711288242892,-500.0,0.00019178,2]
[320319610,1711288242902,-500.0,0.00019178,2]
[320319612,1711288242911,-500.0,0.00019178,2]
[320319614,1711288242919,-500.0,0.00019178,2]
[320319616,1711288242928,-504.36672642,0.00019178,2]
[320319618,1711288242937,-500.0,0.00019178,2]
[320319620,1711288242947,-1729.44,0.00019178,2]
[320319622,1711288242956,-500.0,0.00019178,2]
[320319624,1711288242965,-531.70385,0.00019178,2]
[320319626,1711288242974,-500.0,0.00019178,2]
[320319628,1711288242984,-500.0,0.00019178,2]
[320319630,1711288242993,-500.0,0.00019178,2]
[320319632,1711288243003,-500.0,0.00019178,2]
[320319634,1711288243012,-500.0,0.00019178,2]
[320319636,1711288243022,-500.0,0.00019178,2]
[320319638,1711288243032,-1065.6,0.00019178,2]
[320319640,1711288243041,-500.0,0.00019178,2]
[320319642,1711288243052,-511.14,0.00019178,2]
[320319645,1711288243064,-500.0,0.00019178,2]
[320319647,1711288243073,-256.23712316,0.00019178,2]
[320319650,1711288243098,-248.83331102,0.00019178,2]
[320319652,1711288243107,-492.44392853,0.00019178,2]
[320319655,1711288243121,-7.55607147,0.00019178,2]
[320319656,1711288243130,-413.33276343,0.00019178,2]
[320319659,1711288243142,-316.17723657,0.00019178,2]
[320319661,1711288243151,-500.0,0.00019178,2]
[320319663,1711288243161,-500.0,0.00019178,2]
[320319665,1711288243170,-504.1593153,0.00019178,2]
[320319667,1711288243180,-500.0,0.00019178,2]
[320319669,1711288243190,-1327.06,0.00019178,2]
[320319671,1711288243200,-1048.58,0.00019178,2]
[320319673,1711288243210,-1004.91,0.00019178,2]
[320319675,1711288243220,-550.32,0.00019178,2]
[320319677,1711288243229,-500.0,0.00019178,2]
[320319679,1711288243239,-500.0,0.00019178,2]
[320319681,1711288243249,-1404.4,0.00019178,2]
[320319683,1711288243258,-500.0,0.00019178,2]
[320319684,1711288243268,-500.0,0.00019178,2]
[320319685,1711288243277,-500.0,0.00019178,2]
[320319686,1711288243287,-629.99,0.00019178,2]
[320319687,1711288243296,-500.0,0.00019178,2]
[320319688,1711288243306,-500.0,0.00019178,2]
[320319689,1711288243315,-4159.68,0.00019178,2]
[320319690,1711288243325,-794.14,0.00019178,2]
[320319691,1711288243334,-4046.64,0.00019178,2]
[320319692,1711288243344,-500.0,0.00019178,2]
[320319693,1711288243353,-500.0,0.00019178,2]
[320319694,1711288243363,-500.0,0.00019178,2]
[320319695,1711288243372,-500.0,0.00019178,2]
[320319696,1711288243382,-500.0,0.00019178,2]
[320319697,1711288243391,-1495.08,0.00019178,2]
[320319698,1711288243401,-500.0,0.00019178,2]
[320319699,1711288243412,-502.5411688,0.00019178,2]
[320319700,1711288243423,-561.72,0.00019178,2]
[320319701,1711288243433,-2204.64,0.00019178,2]
[320319702,1711288243442,-609.94,0.00019178,2]
[320319703,1711288243452,-500.0,0.00019178,2]
[320319704,1711288243462,-500.0,0.00019178,2]
[320319705,1711288243471,-25.39737377,0.00019178,2]
[320319706,1711288243484,-349.18197,0.00019178,2]
[320319707,1711288243498,-3359.32765623,0.00019178,2]
[320319708,1711288243514,-200.0,0.00019178,2]
[320319710,1711288243524,-14041.49,0.00019178,2]
[320319712,1711288243533,-161.9,0.0001918,2]
[320319714,1711288243542,-161.9,0.0001918,2]
[320319716,1711288243551,-529.07130567,0.000192,2]
[320319719,1711288243577,-3315.6194904,0.000192,2]
[320319721,1711288243586,-969.20694811,0.00019201,2]
[320319723,1711288243595,-1236.45752342,0.00019225,2]
[320319725,1711288243604,-255.78919344,0.00019263,2]
[320319727,1711288243615,-180.0,0.00019288,2]
[320319729,1711288243624,-813.48097287,0.00019288,2]
[320319732,1711288243633,-361.59287176,0.00019298,2]
[320319734,1711288243645,-139.19311906,0.00019298,2]
[320319736,1711288243655,-150.0,0.00019307,4]
[320319738,1711288243664,-1121.60682039,0.00019328,2]
[320319740,1711288243673,-1236.45752342,0.00019335,2]
[320319742,1711288243682,-236.47187495,0.00019345,2]
[320319744,1711288243691,-198.92222737,0.00019375,2]
[320319746,1711288243701,-3000.0,0.000194,2]
[320319748,1711288243710,-150.0,0.00019402,4]
[320319750,1711288243720,-163.28605529,0.00019404,2]
[320319752,1711288243729,-150.0,0.00019409,2]
[320319754,1711288243738,-150.0,0.0001941,2]
[320319756,1711288243746,-150.0,0.00019415,2]
[320319758,1711288243756,-150.0,0.00019416,2]
[320319760,1711288243766,-236.47187495,0.00019417,2]
[320319761,1711288243776,-150.0,0.0001942,2]
[320319764,1711288243785,-800.0,0.00019425,2]
[320319766,1711288243794,-198.92222737,0.00019425,2]
[320319768,1711288243803,-150.0,0.00019428,2]
[320319770,1711288243813,-150.0,0.00019438,2]
[320319772,1711288243822,-150.0,0.00019442,2]
[320319774,1711288243831,-150.0,0.00019442,2]
[320319776,1711288243841,-800.0,0.00019443,2]
[320319779,1711288243860,-150.0,0.00019444,2]
[320319781,1711288243872,-255.78919344,0.00019445,2]
[320319783,1711288243882,-1236.45752342,0.00019445,2]
[320319785,1711288243891,-150.0,0.00019445,2]
[320319787,1711288243901,-150.0,0.00019447,2]
[320319789,1711288243911,-150.0,0.00019451,2]
[320319791,1711288243921,-500.0,0.00019452,2]
[320319793,1711288243930,-500.0,0.00019452,2]